lending/lending_fUSD_20240110
["ID","MTS","AMOUNT","RATE_DAILY","PERIOD"]
[311120709,1704918660645,-1000.0,0.00039726,2]
[311120710,1704918660654,-1000.0,0.00039726,2]
[311120711,1704918660663,-1000.0,0.00039726,2]
[311120712,1704918660673,-1000.0,0.00039726,2]
[311120713,1704918660683,-1000.0,0.00039726,2]
[311120714,1704918660693,-1000.0,0.00039726,2]
[311120715,1704918660704,-1000.0,0.00039726,2]
[311120716,1704918660713,-1000.0,0.00039726,2]
[311120717,1704918660723,-1000.0,0.00039726,2]
[311120718,1704918660733,-1000.0,0.00039726,2]
[311120719,1704918660744,-1000.0,0.00039726,2]
[311120720,1704918660754,-1000.0,0.00039726,2]
[311120721,1704918660765,-1000.0,0.00039726,2]
[311120722,1704918660775,-1000.0,0.00039726,2]
[311120723,1704918660786,-500.0,0.00039726,4]
[311120724,1704918660796,-1000.0,0.00039726,2]
[311120725,1704918660807,-1000.0,0.00039726,2]
[311120726,1704918660817,-1000.0,0.00039726,2]
[311120727,1704918660828,-493.17160089,0.00039726,2]
[311120728,1704918660838,-500.0,0.00039726,4]
[311120729,1704918660849,-500.0,0.00039726,4]
[311120730,1704918660860,-928.84,0.00039726,4]
[311120731,1704918660871,-823.32,0.00039726,4]
[311120732,1704918660883,-500.0,0.00039726,4]
[311120733,1704918660894,-740.1,0.00039726,4]
[311120734,1704918660904,-500.0,0.00039726,4]
[311120735,1704918660914,-500.0,0.00039726,4]
[311120736,1704918660924,-500.0,0.00039726,4]
[311120737,1704918660934,-576.11,0.00039726,4]
[311120738,1704918660944,-551.99,0.00039726,4]
[311120739,1704918660955,-2206.19,0.00039726,4]
[311120740,1704918660965,-1115.75,0.00039726,4]
[311120741,1704918660976,-557.02,0.00039726,4]
[311120742,1704918660986,-500.0,0.00039726,4]
[311120743,1704918660997,-500.0,0.00039726,4]
[311120744,1704918661008,-500.0,0.00039726,4]
[311120745,1704918661017,-880.51,0.00039726,4]
[311120746,1704918661028,-479.64966834,0.00039726,4]
[311120747,1704918661039,-537.39,0.00039726,4]
[311120748,1704918661049,-500.0,0.00039726,4]
[311120749,1704918661060,-597.61,0.00039726,4]
[311120750,1704918661069,-803.95,0.00039726,4]
[311120751,1704918661080,-1145.83,0.00039726,4]
[311120752,1704918661090,-500.0,0.00039726,4]
[311120753,1704918661101,-500.0,0.00039726,4]
[311120754,1704918661112,-500.0,0.00039726,4]
[311120755,1704918661122,-1123.1,0.00039726,4]
[311120756,1704918661136,-546.2,0.00039726,4]
[311120757,1704918661147,-693.75,0.00039726,4]
[311120758,1704918661157,-500.0,0.00039726,4]
[311120759,1704918661167,-500.0,0.00039726,4]
[311120760,1704918661178,-500.0,0.00039726,4]
[311120761,1704918661189,-500.0,0.00039726,4]
[311120762,1704918661199,-500.0,0.00039726,4]
[311120763,1704918661208,-912.39,0.00039726,4]
[311120764,1704918661218,-500.0,0.00039726,4]
[311120765,1704918661228,-500.0,0.00039726,4]
[311120766,1704918661239,-801.05,0.00039726,4]
[311120767,1704918661249,-500.0,0.00039726,4]
[311120768,1704918661259,-534.42,0.00039726,4]
[311120769,1704918661271,-594.66,0.00039726,4]
[311120770,1704918661281,-1180.9,0.00039726,4]
[311120771,1704918661292,-500.0,0.00039726,4]
[311120772,1704918661302,-559.96,0.00039726,4]
[311120773,1704918661311,-500.0,0.00039726,4]
[311120774,1704918661321,-500.0,0.00039726,4]
[311120775,1704918661331,-500.0,0.00039726,4]
[311120776,1704918661341,-641.08,0.00039726,4]
[311120777,1704918661351,-557.52,0.00039726,4]
[311120778,1704918661361,-2196.7,0.00039726,4]
[311120779,1704918661370,-596.01,0.00039726,4]
[311120780,1704918661385,-500.0,0.00039726,4]
[311120781,1704918661394,-750.3,0.00039726,4]
[311120782,1704918661404,-514.13,0.00039726,4]
[311120783,1704918661413,-1140.67,0.00039726,4]
[311120784,1704918661422,-826.56,0.00039726,4]
[311120785,1704918661432,-241.05,0.00039726,4]
[311120786,1704918661442,-500.0,0.00039726,4]
[311120787,1704918661451,-500.0,0.00039726,4]
[311120788,1704918661462,-771.6,0.00039726,4]
[311120789,1704918661472,-500.0,0.00039726,4]
[311120790,1704918661482,-500.0,0.00039726,4]
[311120791,1704918661492,-500.0,0.00039726,4]
[311120792,1704918661502,-675.64,0.00039726,4]
[311120793,1704918661512,-500.0,0.00039726,5]
[311120794,1704918661522,-266.36,0.00039726,4]
[311120795,1704918661531,-500.0,0.00039726,4]
[311120796,1704918661541,-500.0,0.00039726,4]
[311120797,1704918661550,-500.0,0.00039726,4]
[311120798,1704918661559,-500.0,0.00039726,4]
[311120799,1704918661570,-500.0,0.00039726,4]
[311120800,1704918661581,-500.0,0.00039726,4]
[311120801,1704918661591,-500.0,0.00039726,4]
[311120802,1704918661600,-500.0,0.00039726,4]
[311120803,1704918661610,-500.0,0.00039726,4]
[311120804,1704918661619,-500.0,0.00039726,4]
[311120805,1704918661632,-1127.1,0.00039726,4]
[311120806,1704918661641,-500.0,0.00039726,4]
[311120807,1704918661650,-500.0,0.00039726,4]
[311120808,1704918661660,-1731.77,0.00039726,4]
[311120809,1704918661669,-500.0,0.00039726,4]
[311120810,1704918661679,-500.0,0.00039726,4]
[311120811,1704918661689,-4790.23,0.00039726,4]
[311120812,1704918661699,-3265.34,0.00039726,4]
[311120813,1704918661709,-500.0,0.00039726,4]
[311120814,1704918661721,-500.0,0.00039726,2]
[311120815,1704918661731,-500.0,0.00039726,4]
[311120816,1704918661742,-150.0,0.00039747,7]
[311120817,1704918661752,-183.50048506,0.00039785,7]
[311120818,1704918661762,-19612.0898593,0.000398,7]
[311120819,1704918661777,-8036.3601407,0.000398,7]
[311120820,1704918661788,-1000.0,0.000398,30]
[311120821,1704918661797,-1000.0,0.00039812,10]
[311120822,1704918661807,-1000.0,0.00039812,10]
[311120823,1704918661817,-1000.0,0.00039812,10]
[311120824,1704918661827,-1000.0,0.00039812,10]
[311120825,1704918661838,-1000.0,0.00039812,10]
[311120826,1704918661848,-1000.0,0.00039812,10]
[311120827,1704918661858,-1000.0,0.00039852,10]
[311120828,1704918661869,-1000.0,0.00039852,10]
[311120829,1704918661881,-553.40691291,0.00039871,12]
[311120830,1704918661892,-500.0,0.00039873,2]
[311120831,1704918661903,-500.0,0.00039873,2]
[311120832,1704918661913,-500.0,0.00039873,2]
[311120833,1704918661927,-500.0,0.00039873,2]
[311120834,1704918661937,-500.0,0.00039873,2]
[311120835,1704918661947,-500.0,0.00039873,2]
[311120836,1704918661958,-500.0,0.00039873,2]
[311120837,1704918661968,-23004.68395344,0.00039873,2]
[311120838,1704918661981,-3671.61393207,0.00039873,2]
[311120839,1704918661993,-1461.77726788,0.00039873,2]
[311120840,1704918662006,-2931.68419539,0.00039873,2]
[311120841,1704918662018,-603.72555112,0.00039873,2]
[311120842,1704918662028,-3588.126599,0.00039873,2]
[311120843,1704918662039,-1048.8148316,0.00039873,2]
[311120844,1704918662048,-407.5434758,0.00039873,2]
[311120845,1704918662059,-14108.5737434,0.00039874,9]
[311120846,1704918662069,-1000.0,0.00039876,10]
[311120847,1704918662080,-151.46528445,0.0003988,6]
[311120848,1704918662091,-1734.25051464,0.0003989,3]
[311120849,1704918662104,-456.002,0.0003989,3]
[311120850,1704918662118,-12925.74748536,0.0003989,3]
[311120851,1704918662131,-430.5877192,0.00039899,4]
[311120852,1704918662140,-3405.22860928,0.000399,2]
[311120853,1704918662151,-34564.01935111,0.000399,7]
[311120854,1704918662163,-4089.98874363,0.000399,7]
[311120855,1704918662177,-1265.2173,0.000399,7]
[311120856,1704918662909,18892.58922034,0.00022463,2]
[311120857,1704918665670,1472.29043153,0.00022463,2]
[311120858,1704918768125,2000.0,0.00021867,2]
[311120859,1704918896964,250.0,0.000192,2]
[311120860,1704918914183,500.0,0.00021867,2]
[311120861,1704919023574,23900.0,0.00021867,2]
[311120862,1704919035273,204.23,0.00021867,2]
[311120871,1704919832097,-160.39659426,0.00023197,2]
[311120872,1704919832107,-1702.77135733,0.00023197,2]
[311120873,1704919832119,-408.11133974,0.00023197,2]
[311120874,1704919832131,-831.88512816,0.00023197,2]
[311120875,1704919832140,-1460.16487184,0.00023197,2]
[311120876,1704919832152,-9048.53615481,0.00023197,2]
[311120877,1704919832161,-527.38210729,0.00023198,2]
[311120878,1704919832170,-3140.47732294,0.00023198,2]
[311120879,1704919832180,-4006.3276394,0.00023199,2]
[311120880,1704919832190,-157.27577935,0.000232,2]
[311120881,1704919832202,-500.0,0.000233,2]
[311120882,1704919832212,-204.23,0.0002624,2]
[311120883,1704919832221,-204.0,0.00026513,2]
[311120884,1704919832230,-150.0,0.00027399,2]
[311120885,1704919832240,-579.88339973,0.000274,2]
[311120886,1704919832250,-500.0,0.000274,2]
[311120887,1704919832265,-4864.95,0.00027429,2]
[311120888,1704919832274,-250.0,0.00027429,2]
[311120889,1704919832284,-176.01,0.000276,2]
[311120890,1704919832295,-248.06,0.00027656,2]
[311120891,1704919832304,-150.0,0.00027749,2]
[311120892,1704919832314,-627.91732101,0.00028068,2]
[311120893,1704919832323,-411.36312889,0.00028069,2]
[311120894,1704919832332,-23900.0,0.0002807,2]
[311120895,1704919832342,-176.01,0.00028148,2]
[311120896,1704919832351,-682.61,0.0002834,2]
[311120897,1704919832360,-159.54,0.00028442,2]
[311120898,1704919832370,-250.0,0.00028487,2]
[311120899,1704919832379,-327.72213576,0.000285,2]
[311120900,1704919832388,-754.26,0.00028548,2]
[311120901,1704919832398,-1016.17907175,0.00028589,2]
[311120902,1704919832408,-159.54,0.0002859,2]
[311120903,1704919832417,-2868.95256743,0.0002859,2]
[311120904,1704919832426,-219510.04967613,0.00028599,2]
[311120905,1704919832443,-303.46222081,0.00025511,2]
[311120906,1704919832455,-373.41777919,0.00025511,2]
[311120907,1704919832464,-128.32626116,0.00028599,2]
[311120908,1704919832476,-1164.11847118,0.00028599,2]
[311120909,1704919832491,-316.617,0.00028599,2]
[311120910,1704919832503,-1508.325507,0.00028599,2]
[311120912,1704919832524,-1645.13202341,0.00028599,2]
[311120914,1704919832535,-1362.08145835,0.00028599,2]
[311120916,1704919832547,-3805.44423727,0.00028599,2]
[311120919,1704919832559,-2197.2664254,0.00028599,2]
[311120921,1704919832574,-676.88,0.00027775,2]
[311120936,1704919832770,-341.05,0.00028599,2]
[311120938,1704919832792,-1025.78248683,0.00028599,2]
[311120955,1704919840389,-200.0,0.00028473,2]
[311120956,1704919840399,-24280.0000001,0.00028599,2]
[311120959,1704919840411,-2751.78721656,0.00028599,2]
[311120962,1704919840534,-5375.73394187,0.00028599,2]
[311120963,1704919840546,-7118.52095796,0.00028599,2]
[311120964,1704919840556,-4785.35474479,0.000286,2]
[311120965,1704919840568,-603.61136339,0.000286,2]
[311120966,1704919840580,-14828.03389182,0.000286,2]
[311120967,1704919840590,-3071.0,0.000286,2]
[311120968,1704919840599,-280.62392143,0.000286,2]
[311120969,1704919840609,-176.01,0.00028696,2]
[311120970,1704919840619,-159.54,0.00028738,2]
[311120971,1704919840629,-596.8919,0.000288,2]
[311120972,1704919840638,-473.8529,0.000288,2]
[311120973,1704919840648,-3024.7,0.000288,2]
[311120974,1704919840658,-2112.3145,0.000288,2]
[311120975,1704919840668,-159.54,0.00028886,2]
[311120976,1704919840677,-2000.0,0.0002889,2]
[311120977,1704919840686,-150.02,0.00028899,2]
[311120978,1704919840696,-87.74147603,0.000289,2]
[311120979,1704919840709,-6170.57082958,0.000289,2]
[311120980,1704919840726,-7058.24879439,0.000289,2]
[311120981,1704919840736,-692.5958,0.000289,2]
[311120982,1704919840745,-2471.6975,0.000289,2]
[311120983,1704919840755,-16087.74659276,0.000289,2]
[311120984,1704919840770,-918.404,0.000289,2]
[311120985,1704919840802,-6488.42940724,0.000289,2]
[311120986,1704919840813,-11327.2373,0.000289,2]
[311120987,1704919840823,-2500.0,0.000289,2]
[311120988,1704919840832,-106596.7159,0.000289,2]
[311120989,1704919840842,-217.6968215,0.0002899,2]
[311120990,1704919840854,-505920.20637498,0.00029,2]
[311120991,1704919840863,-470.08,0.00029,2]
[311120992,1704919840874,-319.29,0.00029005,2]
[311120993,1704919840885,-250.0,0.00029005,2]
[311120994,1704919840895,-159.54,0.00029034,2]
[311120995,1704919840905,-319.29,0.00029173,2]
[311120996,1704919840915,-159.54,0.00029183,2]
[311120997,1704919840925,-176.01,0.00029244,2]
[311121000,1704919840935,-155.92,0.00029295,2]
[311121003,1704919840945,-682.61,0.00029318,2]
[311121006,1704919840954,-159.54,0.00029331,2]
[311121009,1704919840964,-319.29,0.00029341,2]
[311121012,1704919840973,-159.54,0.00029479,2]
[311121014,1704919840983,-319.29,0.00029508,2]
[311121016,1704919840992,-159.54,0.00029627,2]
[311121018,1704919841002,-319.29,0.00029676,2]
[311121019,1704919841013,-159.54,0.00029776,2]
[311121020,1704919841026,-176.01,0.00029792,2]
[311121021,1704919841036,-319.29,0.00029843,2]
[311121022,1704919841046,-204.0,0.00029862,7]
[311121023,1704919841056,-159.54,0.00029924,2]
[311121024,1704919841065,-350.38014876,0.0003,2]
[311121025,1704919841075,-155.0,0.0003,2]
[311121026,1704919841084,-319.29,0.00030011,2]
[311121027,1704919841094,-676.88,0.00030039,2]
[311121028,1704919841104,-158.83,0.00030092,2]
[311121029,1704919841114,-319.29,0.00030178,2]
[311121030,1704919841124,-655.98923855,0.00030179,14]
[311121031,1704919841134,-682.61,0.00030297,2]
[311121032,1704919841144,-176.01,0.0003034,2]
[311121033,1704919841154,-319.29,0.00030346,2]
[311121034,1704919841163,-158.83,0.0003039,2]
[311121035,1704919841173,-319.29,0.00030514,2]
[311121036,1704919841182,-157.27577934,0.00030673,2]
[311121037,1704919841191,-158.83,0.00030688,2]
[311121038,1704919841201,-153.84,0.00030874,2]
[311121039,1704919841211,-176.01,0.00030888,2]
[311121040,1704919841220,-158.83,0.00030986,2]
[311121041,1704919841229,-296.99,0.00031,2]
[311121042,1704919841239,-682.61,0.00031275,2]
[311121043,1704919841248,-158.83,0.00031284,2]
[311121044,1704919841258,-176.01,0.00031436,2]
[311121045,1704919841272,-158.83,0.00031582,2]
[311121046,1704919841281,-152.0,0.00031727,3]
[311121047,1704919841290,-153.84,0.0003181,2]
[311121048,1704919841300,-207.0,0.0003181,2]
[311121049,1704919841310,-158.83,0.0003188,2]
[311121050,1704919841320,-199.45,0.00031882,2]
[311121051,1704919841329,-176.01,0.00031984,2]
[311121052,1704919841338,-150.48,0.00032101,2]
[311121053,1704919841347,-158.83,0.00032178,2]
[311121054,1704919841356,-682.61,0.00032254,2]
[311121055,1704919841365,-676.88,0.00032303,2]
[311121056,1704919841375,-432.16297593,0.00032342,2]
[311121057,1704919841384,-158.83,0.00032476,2]
[311121058,1704919841394,-176.01,0.00032532,2]
[311121059,1704919841403,-207.0,0.0003271,2]
[311121060,1704919841413,-153.84,0.00032745,2]
[311121061,1704919841423,-158.83,0.00032774,2]
[311121062,1704919841434,-321.66,0.00032877,15]
[311121063,1704919841444,-432.16297593,0.00032916,2]
[311121064,1704919841453,-1000.0,0.00033,2]
[311121065,1704919841463,-184.83,0.00033052,2]
[311121066,1704919841473,-774.92,0.00033052,2]
[311121067,1704919841483,-158.83,0.00033072,2]
[311121068,1704919841493,-176.01,0.0003308,2]
[311121069,1704919841503,-204.0,0.0003321,13]
[311121070,1704919841516,-682.61,0.00033232,2]
[311121071,1704919841525,-158.83,0.0003337,2]
[311121072,1704919841536,-432.16297593,0.00033489,2]
[311121073,1704919841546,-150.48,0.00033562,2]
[311121074,1704919841556,-207.0,0.0003361,2]
[311121075,1704919841566,-208.0,0.0003361,2]
[311121076,1704919841577,-176.01,0.00033628,2]
[311121077,1704919841588,-158.83,0.00033668,2]
[311121078,1704919841599,-153.84,0.00033681,2]
[311121079,1704919841610,-158.83,0.00033965,2]
[311121080,1704919841620,-1000.0,0.00034,4]
[311121081,1704919841632,-432.16297593,0.00034063,2]
[311121082,1704919841643,-218.8188968,0.00034176,2]
[311121083,1704919841655,-682.61,0.00034211,2]
[311121084,1704919841666,-1016.17907175,0.00034244,2]
[311121085,1704919841677,-158.83,0.00034263,2]
[311121086,1704919841689,-207.0,0.000345,2]
[311121087,1704919841700,-208.0,0.000345,2]
[311121088,1704919841711,-1594.84804,0.0003452,2]
[311121089,1704919841722,-538.678272,0.0003452,2]
[311121090,1704919841733,-828.75,0.00034521,2]
[311121091,1704919841745,-158.83,0.00034561,2]
[311121092,1704919841755,-676.88,0.00034567,2]
[311121093,1704919841769,-153.84,0.00034617,2]
[311121094,1704919841779,-432.16297593,0.00034637,2]
[311121095,1704919841789,-170.28,0.00034656,2]
[311121096,1704919841799,-180.0,0.00034658,2]
[311121097,1704919841809,-367.5,0.00034702,2]
[311121098,1704919841818,-2392.27206,0.00034794,2]
[311121099,1704919841828,-808.017409,0.00034794,2]
[311121100,1704919841837,-158.83,0.00034859,2]
[311121101,1704919841847,-367.5,0.00034884,2]
[311121102,1704919841859,-1180.952302,0.000349,2]
[311121103,1704919841868,-1180.95230181,0.000349,2]
[311121104,1704919841878,-1180.95230181,0.000349,2]
[311121106,1704919841887,-1180.95230181,0.000349,2]
[311121108,1704919841898,-3189.69608,0.00034931,2]
[311121109,1704919841908,-1077.356545,0.00034931,2]
[311121111,1704919841918,-5000.0,0.00035,2]
[311121112,1704919841927,-16417.45689362,0.00035,2]
[311121113,1704919841937,-500.0,0.00035,3]
[311121114,1704919841951,-150.48,0.00035023,2]
[311121115,1704919841961,-24451.78701536,0.00035042,10]
[311121116,1704919841970,-6457.59008994,0.00035042,10]
[311121117,1704919841980,-1090.64522584,0.00035042,10]
[311121118,1704919841989,-439.14204615,0.00035042,10]
[311121119,1704919841999,-367.5,0.00035067,2]
[311121120,1704919842008,-3987.1201,0.00035068,2]
[311121124,1704919842023,-1346.695682,0.00035068,2]
[311121127,1704919842032,-158.83,0.00035157,2]
[311121130,1704919842043,-682.61,0.00035189,2]
[311121133,1704919842052,-432.16297593,0.00035211,2]
[311121136,1704919842062,-1180.95230181,0.00035216,2]
[311121138,1704919842072,-367.5,0.0003525,2]
[311121140,1704919842081,-5581.96814,0.00035342,2]
[311121142,1704919842091,-1885.373955,0.00035342,2]
[311121144,1704919842100,-150.0,0.0003535,2]
[311121146,1704919842110,-179.589,0.0003535,2]
[311121148,1704919842120,-152.0,0.00035379,4]
[311121150,1704919842129,-207.0,0.000354,2]
[311121151,1704919842141,-208.0,0.000354,2]
[311121152,1704919842150,-367.5,0.00035432,2]
[311121153,1704919842160,-158.83,0.00035455,2]
[311121154,1704919842169,-153.84,0.00035552,2]
[311121155,1704919842179,-367.5,0.00035615,2]
[311121156,1704919842188,-150.0,0.00035616,2]
[311121157,1704919842198,-158.83,0.00035753,2]
[311121158,1704919842208,-432.16297593,0.00035784,2]
[311121159,1704919842217,-367.5,0.00035797,2]
[311121160,1704919842227,-828.75,0.00035798,2]
[311121161,1704919842237,-539.5003,0.000358,2]
[311121162,1704919842247,-151.46377724,0.00035816,2]
[311121163,1704919842256,-161.78168236,0.00035816,8]
[311121164,1704919842270,-319.00344249,0.00035816,2]
[311121165,1704919842279,-797.73,0.00035863,2]
[311121166,1704919842288,-500.0,0.000359,2]
[311121167,1704919842301,-8724.1121,0.000359,2]
[311121168,1704919842310,-100000.0,0.000359,2]
[311121169,1704919842319,-1032.7859,0.000359,2]
[311121170,1704919842329,-245000.0,0.000359,2]
[311121171,1704919842338,-367.5,0.0003598,2]
[311121172,1704919842347,-367.5,0.00036163,2]
[311121173,1704919842357,-682.61,0.00036167,2]
[311121174,1704919842367,-151.4637772,0.00036205,2]
[311121175,1704919842376,-161.78168232,0.0003627,9]
[311121176,1704919842385,-207.0,0.0003629,2]
[311121177,1704919842394,-208.0,0.0003629,2]
[311121178,1704919842403,-367.5,0.00036345,2]
[311121179,1704919842413,-184.83,0.00036357,2]
[311121180,1704919842422,-432.16297593,0.00036358,2]
[311121181,1704919842433,-150.48,0.00036484,2]
[311121182,1704919842442,-153.84,0.00036488,2]
[311121183,1704919842451,-5000.0,0.000365,10]
[311121184,1704919842460,-214.83927611,0.00036514,8]
[311121185,1704919842469,-367.5,0.00036528,2]
[311121186,1704919842478,-246.48392761,0.00036537,8]
[311121187,1704919842487,-150.0,0.00036554,2]
[311121188,1704919842497,-204.0,0.00036559,19]
[311121189,1704919842506,-151.4637772,0.00036595,2]
[311121190,1704919842519,-321.66,0.00036613,15]
[311121191,1704919842528,-202.40935696,0.00036629,8]
[311121192,1704919842538,-388.1671277,0.00036652,8]
[311121193,1704919842546,-1000.0,0.00036699,2]
[311121194,1704919842555,-1000.0,0.000367,2]
[311121195,1704919842564,-367.5,0.00036711,2]
[311121196,1704919842574,-161.78168232,0.00036724,9]
[311121197,1704919842584,-418.66897481,0.00036724,4]
[311121198,1704919842593,-2387.27276782,0.00036724,2]
[311121199,1704919842602,-469.55583259,0.0003675,8]
[311121200,1704919842611,-1180.95230181,0.00036795,2]
[311121201,1704919842620,-676.88,0.0003683,2]
[311121202,1704919842630,-319.00344245,0.00036835,2]
[311121203,1704919842638,-367.5,0.00036893,2]
[311121204,1704919842648,-1000.0,0.000369,2]
[311121205,1704919842657,-4073.28080415,0.00036922,10]
[311121206,1704919842667,-432.16297593,0.00036932,2]
[311121207,1704919842676,-1965.990009,0.00036956,30]
[311121208,1704919842685,-1912.752725,0.00036956,30]
[311121209,1704919842694,-304.949637,0.00036956,30]
[311121210,1704919842703,-152.91334285,0.00036966,7]
[311121211,1704919842712,-151.4637772,0.00036984,2]
[311121212,1704919842722,-12219.8424125,0.0003699,10]
[311121213,1704919842731,-8000.0,0.00037,2]
[311121214,1704919842740,-157.49,0.00037,3]
[311121215,1704919842749,-949.44,0.00037,3]
[311121216,1704919842760,-949.44,0.00037,3]
[311121217,1704919842772,-949.44,0.00037,3]
[311121218,1704919842781,-949.44,0.00037,3]
[311121219,1704919842791,-949.44,0.00037,3]
[311121220,1704919842801,-949.44,0.00037,3]
[311121222,1704919842810,-949.44,0.00037,3]
[311121223,1704919842820,-949.44,0.00037,3]
[311121224,1704919842829,-949.44,0.00037,3]
[311121225,1704919842839,-949.44,0.00037,3]
[311121227,1704919842850,-949.44,0.00037,3]
[311121229,1704919842863,-949.44,0.00037,3]
[311121231,1704919842872,-949.44,0.00037,3]
[311121233,1704919842881,-949.44,0.00037,3]
[311121235,1704919842890,-949.44,0.00037,3]
[311121237,1704919842900,-949.44,0.00037,3]
[311121239,1704919842909,-949.44,0.00037,3]
[311121241,1704919842918,-949.44,0.00037,3]
[311121243,1704919842927,-949.44,0.00037,3]
[311121245,1704919842937,-949.44,0.00037,3]
[311121247,1704919842946,-828.75,0.00037075,2]
[311121249,1704919842956,-367.5,0.00037076,2]
[311121251,1704919842965,-1000.0,0.00037124,2]
[311121253,1704919842974,-682.61,0.00037146,2]
[311121255,1704919842983,-161.78168232,0.00037177,10]
[311121257,1704919842993,-207.0,0.0003719,2]
[311121259,1704919843002,-208.0,0.0003719,2]
[311121261,1704919843011,-367.5,0.00037258,2]
[311121263,1704919843024,-151.4637772,0.00037373,2]
[311121265,1704919843033,-153.84,0.00037423,2]
[311121267,1704919843043,-367.5,0.00037441,2]
[311121269,1704919843052,-4073.28080415,0.0003749,10]
[311121271,1704919843062,-150.0,0.00037491,2]
[311121273,1704919843071,-5000.0,0.000375,30]
[311121275,1704919843080,-432.16297593,0.00037505,2]
[311121277,1704919843089,-800.0,0.00037532,10]
[311121278,1704919843098,-367.5,0.00037624,2]
[311121279,1704919843107,-161.78168232,0.00037631,10]
[311121280,1704919843116,-650.0,0.000377,2]
[311121281,1704919843125,-151.4637772,0.00037762,2]
[311121282,1704919843134,-4073.28080415,0.00037798,10]
[311121283,1704919843143,-367.5,0.00037806,2]
[311121284,1704919843153,-152.91334285,0.00037825,7]
[311121285,1704919843162,-319.00344245,0.00037853,2]
[311121286,1704919843171,-1086.99487981,0.00037857,3]
[311121287,1704919843181,-52952.650454,0.0003789,10]
[311121288,1704919843190,-783.7261325,0.00037897,2]
[311121289,1704919843199,-2004.42,0.000379,2]
[311121290,1704919843208,-150.0,0.000379,12]
[311121291,1704919843217,-100746.611511,0.000379,2]
[311121292,1704919843227,-313.12,0.000379,2]
[311121293,1704919843236,-157.5790915,0.00037905,2]
[311121294,1704919843246,-150.48,0.00037946,2]
[311121295,1704919843255,-367.5,0.00037989,2]
[311121296,1704919843267,-4073.28080415,0.0003799,10]
[311121297,1704919843276,-163.0,0.00038,2]
[311121298,1704919843286,-150.0,0.00038,2]
[311121299,1704919843295,-3000.0,0.00038,2]
[311121300,1704919843305,-3000.0,0.00038,2]
[311121301,1704919843315,-3000.0,0.00038,2]
[311121302,1704919843326,-159.49727413,0.00038008,7]
[311121303,1704919843336,-153.22453527,0.00038011,7]
[311121304,1704919843348,-2898.29600811,0.00038043,2]
[311121305,1704919843357,-199.14780697,0.00038043,2]
[311121306,1704919843368,-669.11442601,0.00038053,2]
[311121307,1704919843377,-432.16297593,0.00038079,2]
[311121308,1704919843386,-161.78168232,0.00038085,11]
[311121309,1704919843396,-207.0,0.0003809,2]
[311121310,1704919843405,-208.0,0.0003809,2]
[311121312,1704919843415,-682.61,0.00038124,2]
[311121314,1704919843424,-217.6968215,0.00038133,2]
[311121316,1704919843434,-57025.9312581,0.00038143,10]
[311121318,1704919843443,-100746.611511,0.00038143,2]
[311121320,1704919843453,-2258.04812069,0.00038143,2]
[311121321,1704919843462,-4073.28080415,0.00038144,10]
[311121324,1704919843475,-157.27577934,0.00038146,2]
[311121326,1704919843484,-327.72213575,0.00038147,2]